[Event "*** Titled Tuesday Blitz"]
[Site "Chess.com"]
[Date "2020.04.28"]
[Round "4"]
[White "Quaternitychess"]
[Black "Yaacovn"]
[Result "0-1"]
[WhiteElo "2213"]
[BlackElo "2756"]
[TimeControl "180+1"]
[EndTime "10:41:58 PDT"]
[Termination "Yaacovn won on time"]

1. e4 {[%clk 0:03:00.9]} 1... c6 {[%clk 0:02:55.6]} 2. d4 {[%clk 0:03:00.5]}
2... d5 {[%clk 0:02:56.5]} 3. e5 {[%clk 0:03:00.9]} 3... Bf5 {[%clk 0:02:56.3]}
4. h4 {[%clk 0:03:01.1]} 4... Qb6 {[%clk 0:02:56.1]} 5. a4 {[%clk 0:02:59.6]}
5... a6 {[%clk 0:02:55.6]} 6. a5 {[%clk 0:02:58.9]} 6... Qc7 {[%clk 0:02:55.6]}
7. c4 {[%clk 0:02:51.4]} 7... e6 {[%clk 0:02:52.9]} 8. Nc3 {[%clk 0:02:50.2]}
8... dxc4 {[%clk 0:02:46.1]} 9. Bxc4 {[%clk 0:02:48.6]} 9... Bb4 {[%clk
0:02:39.7]} 10. Qa4 {[%clk 0:02:42.8]} 10... Bf8 {[%clk 0:02:14.4]} 11. Nge2
{[%clk 0:02:35.9]} 11... Nd7 {[%clk 0:02:04.7]} 12. Ng3 {[%clk 0:02:33.8]} 12...
Ne7 {[%clk 0:02:03.8]} 13. O-O {[%clk 0:02:22]} 13... h6 {[%clk 0:01:53.1]} 14.
b4 {[%clk 0:01:46.3]} 14... Bh7 {[%clk 0:01:37.4]} 15. Qb3 {[%clk 0:01:44.1]}
15... Nf5 {[%clk 0:01:31.8]} 16. Nxf5 {[%clk 0:01:10.8]} 16... Bxf5 {[%clk
0:01:32.7]} 17. Be3 {[%clk 0:01:06.7]} 17... Be7 {[%clk 0:01:30.5]} 18. g3
{[%clk 0:01:06.2]} 18... O-O {[%clk 0:01:27.4]} 19. Na4 {[%clk 0:01:06]} 19...
Rad8 {[%clk 0:01:00]} 20. Nc5 {[%clk 0:01:04.9]} 20... Rfe8 {[%clk 0:00:49.9]}
21. Rfc1 {[%clk 0:01:01.6]} 21... Nf8 {[%clk 0:00:48.3]} 22. Be2 {[%clk
0:00:59.2]} 22... Bxc5 {[%clk 0:00:37.6]} 23. bxc5 {[%clk 0:00:54.7]} 23... Be4
{[%clk 0:00:37.4]} 24. h5 {[%clk 0:00:51.9]} 24... Re7 {[%clk 0:00:35.8]} 25. f3
{[%clk 0:00:50.7]} 25... Bd5 {[%clk 0:00:35.2]} 26. Qc2 {[%clk 0:00:50.5]} 26...
Qd7 {[%clk 0:00:32.2]} 27. Rab1 {[%clk 0:00:48.7]} 27... Qc7 {[%clk 0:00:31.1]}
28. Qc3 {[%clk 0:00:43.9]} 28... f6 {[%clk 0:00:27.6]} 29. Bf4 {[%clk
0:00:43.2]} 29... f5 {[%clk 0:00:25.1]} 30. Rb2 {[%clk 0:00:37]} 30... Rdd7
{[%clk 0:00:22.8]} 31. Rcb1 {[%clk 0:00:37.2]} 31... Qd8 {[%clk 0:00:22.5]} 32.
Kf2 {[%clk 0:00:37.1]} 32... Qe8 {[%clk 0:00:22.8]} 33. Rh1 {[%clk 0:00:34.9]}
33... Kh7 {[%clk 0:00:23.1]} 34. Qd2 {[%clk 0:00:34]} 34... Qf7 {[%clk
0:00:23.1]} 35. Bd3 {[%clk 0:00:33.6]} 35... Kg8 {[%clk 0:00:23.1]} 36. Bb1
{[%clk 0:00:34.1]} 36... Re8 {[%clk 0:00:23.2]} 37. Rh4 {[%clk 0:00:32.6]} 37...
Bc4 {[%clk 0:00:23.1]} 38. Qe3 {[%clk 0:00:32.2]} 38... Red8 {[%clk 0:00:22.1]}
39. Rd2 {[%clk 0:00:31.6]} 39... Qe7 {[%clk 0:00:21.4]} 40. Kg2 {[%clk
0:00:29.5]} 40... Bb5 {[%clk 0:00:20.3]} 41. Rh1 {[%clk 0:00:28.6]} 41... Nh7
{[%clk 0:00:20.6]} 42. g4 {[%clk 0:00:27.1]} 42... fxg4 {[%clk 0:00:20.2]} 43.
fxg4 {[%clk 0:00:26.9]} 43... Bc4 {[%clk 0:00:20.3]} 44. Kg3 {[%clk 0:00:21.5]}
44... Ng5 {[%clk 0:00:20]} 45. Rf2 {[%clk 0:00:20]} 45... Bd5 {[%clk 0:00:19.3]}
46. Rhf1 {[%clk 0:00:18.9]} 46... Bc4 {[%clk 0:00:17]} 47. Rd1 {[%clk
0:00:17.3]} 47... Rf8 {[%clk 0:00:15.6]} 48. Bxg5 {[%clk 0:00:16.9]} 48... Qxg5
{[%clk 0:00:15.9]} 49. Qxg5 {[%clk 0:00:15.8]} 49... hxg5 {[%clk 0:00:16.8]} 50.
Bh7+ {[%clk 0:00:15.5]} 50... Kxh7 {[%clk 0:00:14.4]} 51. Rxf8 {[%clk
0:00:16.1]} 51... g6 {[%clk 0:00:13.2]} 52. hxg6+ {[%clk 0:00:13.2]} 52... Kxg6
{[%clk 0:00:14.1]} 53. Rf6+ {[%clk 0:00:12.7]} 53... Kg7 {[%clk 0:00:14.3]} 54.
Kf2 {[%clk 0:00:13.3]} 54... Rd8 {[%clk 0:00:13.8]} 55. Ke3 {[%clk 0:00:13.5]}
55... Rh8 {[%clk 0:00:13.7]} 56. Rb1 {[%clk 0:00:12.8]} 56... Rh3+ {[%clk
0:00:13.5]} 57. Kf2 {[%clk 0:00:12.5]} 57... Bb5 {[%clk 0:00:11.3]} 58. Rxe6
{[%clk 0:00:12.1]} 58... Rd3 {[%clk 0:00:10.5]} 59. Rd6 {[%clk 0:00:11.1]} 59...
Rd2+ {[%clk 0:00:10.7]} 60. Ke3 {[%clk 0:00:10.4]} 60... Rd3+ {[%clk 0:00:09.5]}
61. Ke4 {[%clk 0:00:09.9]} 61... Rh3 {[%clk 0:00:10.4]} 62. Rxb5 {[%clk
0:00:07]} 62... axb5 {[%clk 0:00:10.2]} 63. Rd7+ {[%clk 0:00:07.3]} 63... Kg6
{[%clk 0:00:10.7]} 64. Rd6+ {[%clk 0:00:07.4]} 64... Kf7 {[%clk 0:00:10.3]} 65.
Kf5 {[%clk 0:00:07.7]} 65... Rf3+ {[%clk 0:00:10]} 66. Kxg5 {[%clk 0:00:07.8]}
66... Ke7 {[%clk 0:00:10.2]} 67. Rh6 {[%clk 0:00:01.8]} 67... Rd3 {[%clk
0:00:09.6]} 68. Kf5 {[%clk 0:00:01.5]} 68... Rf3+ {[%clk 0:00:09.4]} 69. Ke4
{[%clk 0:00:01]} 69... Ra3 {[%clk 0:00:10.3]} 0-1

[Event "*** Titled Tuesday Blitz"]
[Site "Chess.com"]
[Date "2020.04.28"]
[Round "4"]
[White "Aygehovit1992"]
[Black "Gubajdullin"]
[Result "1/2-1/2"]
[WhiteElo "2670"]
[BlackElo "2487"]
[TimeControl "180+1"]
[EndTime "10:41:58 PDT"]
[Termination "Game drawn by repetition"]

1. e4 {[%clk 0:03:00.9]} 1... g6 {[%clk 0:02:56.9]} 2. d4 {[%clk 0:03:00.6]}
2... Bg7 {[%clk 0:02:57]} 3. Nc3 {[%clk 0:03:01.2]} 3... d6 {[%clk 0:02:57.2]}
4. f4 {[%clk 0:03:01]} 4... c6 {[%clk 0:02:54]} 5. Nf3 {[%clk 0:03:01.1]} 5...
Bg4 {[%clk 0:02:52.9]} 6. Be3 {[%clk 0:03:00.3]} 6... Qb6 {[%clk 0:02:52.6]} 7.
Rb1 {[%clk 0:02:57.8]} 7... Bxf3 {[%clk 0:02:50.9]} 8. gxf3 {[%clk 0:02:55.8]}
8... e6 {[%clk 0:02:49.6]} 9. h4 {[%clk 0:02:51.4]} 9... h5 {[%clk 0:02:48.8]}
10. Bc4 {[%clk 0:02:44.7]} 10... d5 {[%clk 0:02:47.9]} 11. Bb3 {[%clk
0:02:43.6]} 11... Ne7 {[%clk 0:02:46.3]} 12. Qd2 {[%clk 0:02:37.8]} 12... Nd7
{[%clk 0:02:31.9]} 13. Ne2 {[%clk 0:02:02.6]} 13... a5 {[%clk 0:02:23.7]} 14. c3
{[%clk 0:02:01.6]} 14... a4 {[%clk 0:02:17.8]} 15. Bc2 {[%clk 0:02:01.5]} 15...
Qa5 {[%clk 0:02:14.7]} 16. b4 {[%clk 0:01:58.4]} 16... axb3 {[%clk 0:02:13.6]}
17. axb3 {[%clk 0:01:58.6]} 17... Qd8 {[%clk 0:02:07.5]} 18. Kf2 {[%clk
0:01:40.6]} 18... Ra2 {[%clk 0:02:03.9]} 19. Nc1 {[%clk 0:01:38.3]} 19... Ra3
{[%clk 0:01:59.2]} 20. Nd3 {[%clk 0:01:38.5]} 20... Bf6 {[%clk 0:01:52.6]} 21.
Ne5 {[%clk 0:01:34.4]} 21... Nc8 {[%clk 0:01:48.9]} 22. Kg3 {[%clk 0:01:21.3]}
22... Be7 {[%clk 0:01:46.8]} 23. b4 {[%clk 0:01:09.3]} 23... Nd6 {[%clk
0:01:44]} 24. Bd3 {[%clk 0:01:06.7]} 24... Nf6 {[%clk 0:01:37]} 25. Qb2 {[%clk
0:00:52.9]} 25... Ra7 {[%clk 0:01:22.9]} 26. Qc2 {[%clk 0:00:52.4]} 26... Qa8
{[%clk 0:01:20.7]} 27. Kg2 {[%clk 0:00:48.4]} 27... Ra2 {[%clk 0:01:17.8]} 28.
Rb2 {[%clk 0:00:48.8]} 28... Rxb2 {[%clk 0:01:17.6]} 29. Qxb2 {[%clk 0:00:49.5]}
29... dxe4 {[%clk 0:01:17.6]} 30. fxe4 {[%clk 0:00:50]} 30... Ndxe4 {[%clk
0:01:12.3]} 31. Ra1 {[%clk 0:00:47.9]} 31... Qd8 {[%clk 0:01:10.6]} 32. b5
{[%clk 0:00:48.1]} 32... c5 {[%clk 0:00:53.2]} 33. c4 {[%clk 0:00:33.8]} 33...
O-O {[%clk 0:00:48.2]} 34. Kf3 {[%clk 0:00:33.8]} 34... cxd4 {[%clk 0:00:45.6]}
35. Qxd4 {[%clk 0:00:33.1]} 35... Nc5 {[%clk 0:00:40.2]} 36. Qxd8 {[%clk
0:00:30]} 36... Rxd8 {[%clk 0:00:39.6]} 37. Bc2 {[%clk 0:00:30.7]} 37... Nfd7
{[%clk 0:00:36.8]} 38. Ra7 {[%clk 0:00:29.8]} 38... b6 {[%clk 0:00:23.4]} 39.
Nc6 {[%clk 0:00:25.1]} 39... Re8 {[%clk 0:00:16.2]} 40. Nxe7+ {[%clk 0:00:25.2]}
40... Rxe7 {[%clk 0:00:16.1]} 41. Bxc5 {[%clk 0:00:25.9]} 41... bxc5 {[%clk
0:00:15.8]} 42. b6 {[%clk 0:00:26.4]} 42... Kg7 {[%clk 0:00:13.7]} 43. Ba4
{[%clk 0:00:23.3]} 43... Nxb6 {[%clk 0:00:06.9]} 44. Rxe7 {[%clk 0:00:23.2]}
44... Nxa4 {[%clk 0:00:06.7]} 45. Ke4 {[%clk 0:00:20.5]} 45... Nb2 {[%clk
0:00:05.4]} 46. Rc7 {[%clk 0:00:15]} 46... Nxc4 {[%clk 0:00:05.1]} 47. Rxc5
{[%clk 0:00:15.6]} 47... Nd6+ {[%clk 0:00:04.7]} 48. Ke5 {[%clk 0:00:12.6]}
48... Nf5 {[%clk 0:00:04.3]} 49. Rc7 {[%clk 0:00:11.3]} 49... Nxh4 {[%clk
0:00:03.6]} 50. Kd6 {[%clk 0:00:11.8]} 50... Nf5+ {[%clk 0:00:03.2]} 51. Kd7
{[%clk 0:00:11.7]} 51... h4 {[%clk 0:00:02.9]} 52. Ke8 {[%clk 0:00:11.9]} 52...
Nh6 {[%clk 0:00:02.8]} 53. Rc3 {[%clk 0:00:11]} 53... Kf6 {[%clk 0:00:02.2]} 54.
Rh3 {[%clk 0:00:11]} 54... g5 {[%clk 0:00:02]} 55. fxg5+ {[%clk 0:00:10.2]}
55... Kxg5 {[%clk 0:00:01.8]} 56. Ke7 {[%clk 0:00:11.1]} 56... Kg4 {[%clk
0:00:02]} 57. Rh1 {[%clk 0:00:11]} 57... h3 {[%clk 0:00:02.2]} 58. Kf6 {[%clk
0:00:11.2]} 58... Kg3 {[%clk 0:00:02.4]} 59. Kg5 {[%clk 0:00:11.5]} 59... Kg2
{[%clk 0:00:02.4]} 60. Ra1 {[%clk 0:00:11.7]} 60... h2 {[%clk 0:00:02.4]} 61.
Ra2+ {[%clk 0:00:12.1]} 61... Kg3 {[%clk 0:00:02.3]} 62. Ra3+ {[%clk 0:00:11.8]}
62... Kg2 {[%clk 0:00:02.2]} 63. Ra2+ {[%clk 0:00:12]} 63... Kg3 {[%clk
0:00:02.2]} 64. Ra3+ {[%clk 0:00:12]} 64... Kg2 {[%clk 0:00:02.2]} 65. Ra2+
{[%clk 0:00:12]} 1/2-1/2

[Event "*** Titled Tuesday Blitz"]
[Site "Chess.com"]
[Date "2020.04.28"]
[Round "4"]
[White "Ceejay271"]
[Black "KhamzinOlzhas"]
[Result "1-0"]
[WhiteElo "2330"]
[BlackElo "2455"]
[TimeControl "180+1"]
[EndTime "10:41:58 PDT"]
[Termination "Ceejay271 won by resignation"]

1. c4 {[%clk 0:03:00.9]} 1... c5 {[%clk 0:02:58.7]} 2. g3 {[%clk 0:02:59.3]}
2... g6 {[%clk 0:02:58]} 3. Bg2 {[%clk 0:02:59.1]} 3... Bg7 {[%clk 0:02:58.7]}
4. Nf3 {[%clk 0:02:57.3]} 4... Nc6 {[%clk 0:02:58.3]} 5. O-O {[%clk 0:02:56.9]}
5... d6 {[%clk 0:02:58.8]} 6. Nc3 {[%clk 0:02:56]} 6... Bf5 {[%clk 0:02:57.1]}
7. d3 {[%clk 0:02:54.6]} 7... Qd7 {[%clk 0:02:56.6]} 8. Bd2 {[%clk 0:02:48.7]}
8... Bh3 {[%clk 0:02:52.4]} 9. Bxh3 {[%clk 0:02:41.6]} 9... Qxh3 {[%clk
0:02:53.3]} 10. Nd5 {[%clk 0:02:40.5]} 10... Qd7 {[%clk 0:02:39]} 11. Rb1 {[%clk
0:02:32.7]} 11... e6 {[%clk 0:02:38.6]} 12. Nc3 {[%clk 0:02:29.1]} 12... Nge7
{[%clk 0:02:34.8]} 13. a3 {[%clk 0:02:28.5]} 13... O-O {[%clk 0:02:33.4]} 14. b4
{[%clk 0:02:27.8]} 14... b6 {[%clk 0:02:34]} 15. b5 {[%clk 0:02:25.4]} 15... Ne5
{[%clk 0:02:24.1]} 16. Nxe5 {[%clk 0:02:24.6]} 16... dxe5 {[%clk 0:02:25]} 17.
a4 {[%clk 0:02:21.9]} 17... Rad8 {[%clk 0:02:00.2]} 18. a5 {[%clk 0:02:19.9]}
18... f5 {[%clk 0:01:59.4]} 19. axb6 {[%clk 0:02:18.1]} 19... axb6 {[%clk
0:02:00.3]} 20. Bg5 {[%clk 0:02:13.1]} 20... h6 {[%clk 0:01:55.1]} 21. Bxe7
{[%clk 0:02:11]} 21... Qxe7 {[%clk 0:01:56]} 22. Qc2 {[%clk 0:02:00.6]} 22... h5
{[%clk 0:01:55.5]} 23. Ra1 {[%clk 0:01:55.9]} 23... h4 {[%clk 0:01:55.6]} 24.
Ra6 {[%clk 0:01:54.8]} 24... Rd6 {[%clk 0:01:54.2]} 25. Rfa1 {[%clk 0:01:50.3]}
25... e4 {[%clk 0:01:37.9]} 26. Ra7 {[%clk 0:01:46.6]} 26... Qf6 {[%clk
0:01:35.8]} 27. R1a3 {[%clk 0:01:38.8]} 27... Rfd8 {[%clk 0:01:24.5]} 28. Ra8
{[%clk 0:01:25.7]} 28... Rxa8 {[%clk 0:01:21.8]} 29. Rxa8+ {[%clk 0:01:24.5]}
29... Kh7 {[%clk 0:01:22.5]} 30. Ra3 {[%clk 0:01:21.9]} 30... Qg5 {[%clk
0:01:12.4]} 31. dxe4 {[%clk 0:01:10.1]} 31... h3 {[%clk 0:01:03.7]} 32. exf5
{[%clk 0:00:59.7]} 32... gxf5 {[%clk 0:01:04.6]} 33. e4 {[%clk 0:00:43.2]} 33...
Rd2 {[%clk 0:00:52.5]} 34. Qc1 {[%clk 0:00:42.3]} 34... Bd4 {[%clk 0:00:53]} 35.
Nd1 {[%clk 0:00:33.6]} 35... fxe4 {[%clk 0:00:26.4]} 36. Ne3 {[%clk 0:00:18.9]}
36... Rd3 {[%clk 0:00:15.4]} 37. Rxd3 {[%clk 0:00:12.2]} 37... exd3 {[%clk
0:00:16.3]} 38. Qd2 {[%clk 0:00:12.2]} 38... Qg6 {[%clk 0:00:16.4]} 39. Nd1
{[%clk 0:00:08.8]} 39... Qe4 {[%clk 0:00:15.8]} 40. Ne3 {[%clk 0:00:05]} 40...
Bxe3 {[%clk 0:00:14.4]} 41. fxe3 {[%clk 0:00:04.9]} 41... Qf3 {[%clk 0:00:12.8]}
42. Qf2 {[%clk 0:00:04.5]} 42... Qd1+ {[%clk 0:00:10]} 43. Qf1 {[%clk
0:00:04.3]} 43... Qxf1+ {[%clk 0:00:08.9]} 44. Kxf1 {[%clk 0:00:04.3]} 44... e5
{[%clk 0:00:09.6]} 45. e4 {[%clk 0:00:04]} 45... Kg6 {[%clk 0:00:10]} 46. Kf2
{[%clk 0:00:04.5]} 46... Kf6 {[%clk 0:00:10.7]} 47. Ke3 {[%clk 0:00:04.2]} 47...
Kg5 {[%clk 0:00:11.6]} 48. Kxd3 {[%clk 0:00:04.7]} 48... Kg4 {[%clk 0:00:12.5]}
49. Ke3 {[%clk 0:00:04.9]} 49... Kg5 {[%clk 0:00:12.6]} 50. Kf3 {[%clk
0:00:05.4]} 50... Kh5 {[%clk 0:00:12.5]} 51. Kf2 {[%clk 0:00:05.2]} 51... Kg4
{[%clk 0:00:12.9]} 52. Ke3 {[%clk 0:00:05.9]} 52... Kg5 {[%clk 0:00:13.2]} 53.
Kf3 {[%clk 0:00:06.5]} 53... Kh5 {[%clk 0:00:13.7]} 54. g4+ {[%clk 0:00:05.4]}
54... Kh4 {[%clk 0:00:13.6]} 55. g5 {[%clk 0:00:05.6]} 55... Kh5 {[%clk
0:00:12.6]} 56. Kg3 {[%clk 0:00:05.6]} 56... Kxg5 {[%clk 0:00:13.3]} 57. Kxh3
{[%clk 0:00:06.2]} 57... Kf4 {[%clk 0:00:14.2]} 58. Kg2 {[%clk 0:00:06.3]} 58...
Kxe4 {[%clk 0:00:12.4]} 59. h4 {[%clk 0:00:06.7]} 59... Kf4 {[%clk 0:00:06.7]}
60. h5 {[%clk 0:00:05.4]} 60... Kg5 {[%clk 0:00:07]} 61. Kf3 {[%clk 0:00:05.3]}
61... Kxh5 {[%clk 0:00:07.4]} 62. Ke4 {[%clk 0:00:05.9]} 62... Kg5 {[%clk
0:00:07.4]} 63. Kxe5 {[%clk 0:00:06.4]} 63... Kg4 {[%clk 0:00:08.3]} 64. Kd5
{[%clk 0:00:06.7]} 64... Kf4 {[%clk 0:00:09.2]} 65. Kc6 {[%clk 0:00:07.3]} 65...
Ke4 {[%clk 0:00:10.1]} 66. Kxb6 {[%clk 0:00:07.9]} 66... Kd4 {[%clk 0:00:11]}
67. Ka7 {[%clk 0:00:07.2]} 67... Kxc4 {[%clk 0:00:11.9]} 68. b6 {[%clk
0:00:07.9]} 68... Kd3 {[%clk 0:00:12.6]} 69. b7 {[%clk 0:00:08.3]} 69... c4
{[%clk 0:00:13.5]} 70. b8=Q {[%clk 0:00:08.5]} 70... c3 {[%clk 0:00:14.4]} 71.
Qb1+ {[%clk 0:00:07.3]} 71... c2 {[%clk 0:00:14.2]} 72. Qc1 {[%clk 0:00:07.3]}
1-0

[Event "*** Titled Tuesday Blitz"]
[Site "Chess.com"]
[Date "2020.04.28"]
[Round "4"]
[White "bascheyaro"]
[Black "sergeikim"]
[Result "1/2-1/2"]
[WhiteElo "2666"]
[BlackElo "2434"]
[TimeControl "180+1"]
[EndTime "10:42:03 PDT"]
[Termination "Game drawn - insufficient material"]

1. d4 {[%clk 0:03:00.9]} 1... Nf6 {[%clk 0:02:59]} 2. Nf3 {[%clk 0:03:00.6]}
2... g6 {[%clk 0:02:59]} 3. Bf4 {[%clk 0:03:00.9]} 3... Bg7 {[%clk 0:02:58.7]}
4. e3 {[%clk 0:03:01.5]} 4... O-O {[%clk 0:02:58.4]} 5. c4 {[%clk 0:03:01.9]}
5... d6 {[%clk 0:02:58.7]} 6. Nc3 {[%clk 0:03:02]} 6... Nbd7 {[%clk 0:02:58.4]}
7. Be2 {[%clk 0:03:02.3]} 7... b6 {[%clk 0:02:58.4]} 8. O-O {[%clk 0:03:02.6]}
8... Bb7 {[%clk 0:02:58.2]} 9. d5 {[%clk 0:03:03.2]} 9... e5 {[%clk 0:02:53.7]}
10. dxe6 {[%clk 0:03:01.2]} 10... fxe6 {[%clk 0:02:54.6]} 11. Nd4 {[%clk
0:02:59.8]} 11... Qe7 {[%clk 0:02:51.3]} 12. Bg5 {[%clk 0:02:56.1]} 12... h6
{[%clk 0:02:44]} 13. Bh4 {[%clk 0:02:55.6]} 13... g5 {[%clk 0:02:28.4]} 14. Bg3
{[%clk 0:02:51.9]} 14... Nc5 {[%clk 0:02:21.4]} 15. f3 {[%clk 0:02:44.9]} 15...
a5 {[%clk 0:02:18.8]} 16. b3 {[%clk 0:02:43.6]} 16... Kh8 {[%clk 0:02:14.8]} 17.
a3 {[%clk 0:02:39.7]} 17... Qd7 {[%clk 0:02:10]} 18. Rc1 {[%clk 0:02:35.3]}
18... e5 {[%clk 0:02:05.1]} 19. Ndb5 {[%clk 0:02:35.3]} 19... Rad8 {[%clk
0:02:00.3]} 20. b4 {[%clk 0:02:35.2]} 20... axb4 {[%clk 0:01:58.4]} 21. axb4
{[%clk 0:02:36.1]} 21... Ne6 {[%clk 0:01:52.4]} 22. Nd5 {[%clk 0:02:28.2]} 22...
c6 {[%clk 0:01:40.9]} 23. Nxb6 {[%clk 0:02:25.8]} 23... Qe7 {[%clk 0:01:38.3]}
24. Nc3 {[%clk 0:02:26]} 24... Nh5 {[%clk 0:01:33.9]} 25. Bf2 {[%clk 0:02:24.7]}
25... Nf6 {[%clk 0:01:31.6]} 26. b5 {[%clk 0:02:14.1]} 26... Nc5 {[%clk
0:01:22.2]} 27. bxc6 {[%clk 0:02:13.6]} 27... Bxc6 {[%clk 0:01:21.2]} 28. Nbd5
{[%clk 0:02:14]} 28... Nxd5 {[%clk 0:01:16.7]} 29. Nxd5 {[%clk 0:02:14.2]} 29...
Qf7 {[%clk 0:01:13.1]} 30. e4 {[%clk 0:02:14.3]} 30... Ne6 {[%clk 0:01:10.1]}
31. Ra1 {[%clk 0:02:14.2]} 31... Nd4 {[%clk 0:01:09.1]} 32. Bd3 {[%clk
0:02:13.7]} 32... Bxd5 {[%clk 0:01:04.4]} 33. exd5 {[%clk 0:02:11.9]} 33... Rb8
{[%clk 0:01:02.5]} 34. Rb1 {[%clk 0:02:06.5]} 34... Qf4 {[%clk 0:00:52.3]} 35.
Re1 {[%clk 0:01:58.5]} 35... Ra8 {[%clk 0:00:42.1]} 36. Re4 {[%clk 0:01:58.1]}
36... Qf6 {[%clk 0:00:41.2]} 37. Qd2 {[%clk 0:01:52.4]} 37... Ra3 {[%clk
0:00:37.8]} 38. Bxd4 {[%clk 0:01:43.8]} 38... exd4 {[%clk 0:00:36.8]} 39. h4
{[%clk 0:01:40.6]} 39... gxh4 {[%clk 0:00:29.3]} 40. Re6 {[%clk 0:01:38.7]}
40... Qg5 {[%clk 0:00:20]} 41. Qe2 {[%clk 0:01:27.7]} 41... Be5 {[%clk
0:00:15.1]} 42. Qe4 {[%clk 0:01:25.6]} 42... Qe3+ {[%clk 0:00:14.4]} 43. Qxe3
{[%clk 0:01:23.3]} 43... dxe3 {[%clk 0:00:15.3]} 44. Be2 {[%clk 0:01:21.7]}
44... Kg7 {[%clk 0:00:13.2]} 45. c5 {[%clk 0:01:20.8]} 45... Rf6 {[%clk
0:00:12.3]} 46. Re7+ {[%clk 0:00:56.6]} 46... Rf7 {[%clk 0:00:11.3]} 47. Rxe5
{[%clk 0:00:41.1]} 47... dxe5 {[%clk 0:00:10.8]} 48. Rc1 {[%clk 0:00:39.3]}
48... Rfa7 {[%clk 0:00:10.1]} 49. Kh2 {[%clk 0:00:33.2]} 49... Ra1 {[%clk
0:00:11]} 50. Rc4 {[%clk 0:00:32.9]} 50... R7a4 {[%clk 0:00:09.5]} 51. c6 {[%clk
0:00:31]} 51... Rxc4 {[%clk 0:00:09]} 52. Bxc4 {[%clk 0:00:31.5]} 52... Rc1
{[%clk 0:00:08.3]} 53. Bb5 {[%clk 0:00:27.1]} 53... Kf6 {[%clk 0:00:06.5]} 54.
d6 {[%clk 0:00:20.4]} 54... Ke6 {[%clk 0:00:06.1]} 55. d7 {[%clk 0:00:20.3]}
55... Ke7 {[%clk 0:00:07]} 56. Kh3 {[%clk 0:00:20.6]} 56... Kd8 {[%clk
0:00:06.5]} 57. Kxh4 {[%clk 0:00:20.7]} 57... Kc7 {[%clk 0:00:07.4]} 58. Kg3
{[%clk 0:00:20.5]} 58... Rc2 {[%clk 0:00:08.3]} 59. f4 {[%clk 0:00:18]} 59...
Rb2 {[%clk 0:00:09.2]} 60. Bd3 {[%clk 0:00:15.1]} 60... Rb5 {[%clk 0:00:10.1]}
61. Kf3 {[%clk 0:00:14.7]} 61... exf4 {[%clk 0:00:11]} 62. Kxf4 {[%clk
0:00:15.2]} 62... Rb3 {[%clk 0:00:10.4]} 63. Kxe3 {[%clk 0:00:14.8]} 63... Rc3
{[%clk 0:00:10.2]} 64. Ke4 {[%clk 0:00:15]} 64... Rxc6 {[%clk 0:00:11.1]} 65.
Bb5 {[%clk 0:00:14.5]} 65... Rd6 {[%clk 0:00:11.4]} 66. g4 {[%clk 0:00:14.2]}
66... Rd2 {[%clk 0:00:11.8]} 67. Kf4 {[%clk 0:00:14]} 67... Kb6 {[%clk
0:00:10.4]} 68. Bc4 {[%clk 0:00:11.9]} 68... Rxd7 {[%clk 0:00:09]} 69. Be6
{[%clk 0:00:11.8]} 69... Rd4+ {[%clk 0:00:08.6]} 70. Ke5 {[%clk 0:00:12.4]}
70... Rxg4 {[%clk 0:00:08.2]} 71. Bxg4 {[%clk 0:00:12.5]} 71... h5 {[%clk
0:00:08]} 72. Bxh5 {[%clk 0:00:13.4]} 1/2-1/2